fUST/lending_fUST_20250529
["ID","MTS","AMOUNT","RATE_DAILY","PERIOD"]
[362875055,1748505041392,-151.0,0.00020821,2]
[362875057,1748505041401,-430.0,0.00020821,2]
[362875059,1748505041410,-430.0,0.00020821,2]
[362875061,1748505041420,-722.52,0.00020821,2]
[362875063,1748505041429,-151.0,0.00020821,2]
[362875065,1748505041438,-430.0,0.00020821,2]
[362875067,1748505041447,-791.86,0.00020821,2]
[362875069,1748505041456,-430.0,0.00020821,2]
[362875071,1748505041465,-1447.82,0.00020821,2]
[362875073,1748505041474,-430.0,0.00020821,2]
[362875075,1748505041483,-433.64,0.00020821,2]
[362875077,1748505041495,-151.0,0.00020821,2]
[362875079,1748505041505,-430.0,0.00020821,2]
[362875081,1748505041514,-430.0,0.00020821,2]
[362875083,1748505041523,-756.65,0.00020821,2]
[362875085,1748505041532,-430.0,0.00020821,2]
[362875087,1748505041541,-154.689927,0.00020821,2]
[362875089,1748505041551,-1636.66,0.00020821,2]
[362875091,1748505041562,-576.68,0.00020821,2]
[362875093,1748505041571,-430.0,0.00020821,2]
[362875095,1748505041580,-430.0,0.00020821,2]
[362875097,1748505041589,-430.0,0.00020821,2]
[362875099,1748505041598,-284.330037,0.00020821,2]
[362875101,1748505041607,-284.330037,0.00020821,2]
[362875103,1748505041616,-430.0,0.00020821,2]
[362875105,1748505041626,-430.0,0.00020821,2]
[362875107,1748505041635,-666.11,0.00020821,2]
[362875109,1748505041645,-430.0,0.00020821,2]
[362875111,1748505041655,-718.68,0.00020821,2]
[362875113,1748505041664,-575.25,0.00020821,2]
[362875115,1748505041674,-430.0,0.00020821,2]
[362875117,1748505041683,-151.0,0.00020821,2]
[362875119,1748505041692,-1886.86,0.00020821,2]
[362875121,1748505041702,-336.978384,0.00020821,2]
[362875123,1748505041711,-430.0,0.00020821,2]
[362875125,1748505041720,-430.0,0.00020821,2]
[362875127,1748505041729,-336.978384,0.00020821,2]
[362875129,1748505041739,-430.0,0.00020821,2]
[362875131,1748505041749,-430.0,0.00020821,2]
[362875133,1748505041758,-817.8,0.00020821,2]
[362875135,1748505041768,-430.0,0.00020821,2]
[362875137,1748505041779,-449.36,0.00020821,2]
[362875139,1748505041790,-175.188,0.00020848,2]
[362875141,1748505041801,-570.15995727,0.00020868,2]
[362875143,1748505041812,-1500.0,0.00020868,2]
[362875145,1748505041822,-505.14559696,0.00020868,2]
[362875148,1748505041834,-423.31762986,0.00020883,2]
[362875150,1748505041845,-160.0,0.00020883,2]
[362875151,1748505041854,-229.26895353,0.00020883,2]
[362875154,1748505041863,-12660.97845086,0.00020883,2]
[362875155,1748505041872,-160.0,0.00020883,2]
[362875157,1748505041881,-212.70147903,0.00020883,2]
[362875160,1748505041891,-842.5625,0.00020883,2]
[362875161,1748505041900,-160.0,0.00020883,2]
[362875163,1748505041909,-160.0,0.00020883,2]
[362875165,1748505041918,-160.0,0.00020884,2]
[362875167,1748505041927,-160.0,0.00020884,2]
[362875169,1748505041936,-160.0,0.00020884,2]
[362875171,1748505041946,-420.0,0.00020899,2]
[362875173,1748505041955,-665.33371378,0.000209,2]
[362875175,1748505041964,-410.55189418,0.00020934,4]
[362875177,1748505041973,-267.82393325,0.00021,2]
[362875179,1748505041983,-523.20016485,0.00021068,2]
[362875181,1748505041992,-1500.0,0.00021068,2]
[362875183,1748505042000,-842.5625,0.00021086,3]
[362875185,1748505042010,-12660.97845086,0.00021086,3]
[362875187,1748505042019,-151.0,0.00021086,2]
[362875189,1748505042029,-151.0,0.00021086,2]
[362875191,1748505042038,-386.01812521,0.00021095,2]
[362875193,1748505042047,-430.0,0.00021095,2]
[362875195,1748505042057,-430.0,0.00021095,2]
[362875197,1748505042067,-430.0,0.00021095,2]
[362875199,1748505042076,-430.0,0.00021095,2]
[362875201,1748505042085,-430.0,0.00021095,2]
[362875203,1748505042095,-430.0,0.00021095,2]
[362875216,1748505042198,-615.3,0.00021095,2]
[362875218,1748505042208,-430.0,0.00021095,2]
[362875220,1748505042218,-430.0,0.00021095,2]
[362875222,1748505042227,-430.0,0.00021095,2]
[362875224,1748505042237,-430.0,0.00021095,2]
[362875226,1748505042246,-1571.33,0.00021095,2]
[362875228,1748505042256,-430.0,0.00021095,2]
[362875230,1748505042265,-430.0,0.00021095,2]
[362875232,1748505042275,-430.0,0.00021095,2]
[362875234,1748505042286,-430.0,0.00021095,2]
[362875236,1748505042299,-2732.65,0.00021095,2]
[362875238,1748505042308,-993.66,0.00021095,2]
[362875240,1748505042318,-2382.98,0.00021095,2]
[362875242,1748505042327,-613.17,0.00021095,2]
[362875244,1748505042337,-902.73,0.00021095,2]
[362875246,1748505042346,-1504.2,0.00021095,2]
[362875248,1748505042356,-430.0,0.00021095,2]
[362875250,1748505042365,-430.0,0.00021095,2]
[362875252,1748505042375,-430.0,0.00021095,2]
[362875254,1748505042384,-430.0,0.00021095,2]
[362875256,1748505042393,-430.0,0.00021095,2]
[362875258,1748505042403,-430.0,0.00021095,2]
[362875260,1748505042412,-722.52,0.00021095,2]
[362875262,1748505042422,-430.0,0.00021095,2]
[362875264,1748505042431,-791.86,0.00021095,2]
[362875266,1748505042441,-430.0,0.00021095,2]
[362875268,1748505042451,-1447.82,0.00021095,2]
[362875270,1748505042460,-430.0,0.00021095,2]
[362875272,1748505042469,-433.64,0.00021095,2]
[362875274,1748505042478,-430.0,0.00021095,2]
[362875276,1748505042488,-430.0,0.00021095,2]
[362875278,1748505042498,-756.65,0.00021095,2]
[362875280,1748505042507,-430.0,0.00021095,2]
[362875282,1748505042517,-1636.66,0.00021095,2]
[362875284,1748505042528,-576.68,0.00021095,2]
[362875286,1748505042537,-430.0,0.00021095,2]
[362875288,1748505042547,-430.0,0.00021095,2]
[362875290,1748505042556,-430.0,0.00021095,2]
[362875292,1748505042567,-430.0,0.00021095,2]
[362875294,1748505042576,-491.76926649,0.00021095,2]
[362875296,1748505042585,-666.11,0.00021095,2]
[362875298,1748505042595,-430.0,0.00021095,2]
[362875300,1748505042604,-718.68,0.00021095,2]
[362875302,1748505042614,-575.25,0.00021095,2]
[362875304,1748505042623,-430.0,0.00021095,2]
[362875306,1748505042633,-1886.86,0.00021095,2]
[362875308,1748505042642,-430.0,0.00021095,2]
[362875310,1748505042652,-430.0,0.00021095,2]
[362875312,1748505042661,-346.91551838,0.00021095,2]
[362875314,1748505042671,-430.0,0.00021095,2]
[362875316,1748505042680,-817.8,0.00021095,2]
[362875318,1748505042689,-449.36,0.00021095,2]
[362875320,1748505042699,-410.55189418,0.00021107,4]
[362875322,1748505042708,-600.0,0.00021164,2]
[362875324,1748505042718,-410.55189418,0.00021279,5]
[362875326,1748505042728,-152.215926,0.00021369,2]
[362875328,1748505042737,-430.0,0.00021369,2]
[362875330,1748505042746,-430.0,0.00021369,2]
[362875332,1748505042755,-430.0,0.00021369,2]
[362875334,1748505042764,-430.0,0.00021369,2]
[362875336,1748505042773,-201.25692703,0.00021369,2]
[362875338,1748505042783,-218.803986,0.00021369,2]
[362875340,1748505042792,-218.803986,0.00021369,2]
[362875342,1748505042804,-430.0,0.00021369,2]
[362875344,1748505042813,-152.935896,0.00021369,2]
[362875346,1748505042822,-615.3,0.00021369,2]
[362875348,1748505042831,-430.0,0.00021369,2]
[362875350,1748505042840,-430.0,0.00021369,2]
[362875352,1748505042849,-430.0,0.00021369,2]
[362875354,1748505042858,-430.0,0.00021369,2]
[362875356,1748505042867,-1571.33,0.00021369,2]
[362875358,1748505042877,-191.99598513,0.00021369,2]
[362875360,1748505042886,-430.0,0.00021369,2]
[362875362,1748505042895,-430.0,0.00021369,2]
[362875364,1748505042905,-430.0,0.00021369,2]
[362875366,1748505042915,-2732.65,0.00021369,2]
[362875368,1748505042925,-993.66,0.00021369,2]
[362875370,1748505042934,-151.0,0.00021369,2]
[362875372,1748505042943,-2382.98,0.00021369,2]
[362875374,1748505042952,-151.0,0.00021369,2]
[362875376,1748505042962,-613.17,0.00021369,2]
[362875378,1748505042971,-902.73,0.00021369,2]
[362875380,1748505042980,-1504.2,0.00021369,2]
[362875382,1748505042990,-295.63124419,0.00021369,2]
[362875384,1748505042999,-430.0,0.00021369,2]
[362875386,1748505043008,-430.0,0.00021369,2]
[362875388,1748505043018,-430.0,0.00021369,2]
[362875390,1748505043028,-430.0,0.00021369,2]
[362875392,1748505043038,-430.0,0.00021369,2]
[362875394,1748505043049,-722.52,0.00021369,2]
[362875397,1748505043058,-430.0,0.00021369,2]
[362875399,1748505043067,-791.86,0.00021369,2]
[362875402,1748505043077,-430.0,0.00021369,2]
[362875405,1748505043086,-1447.82,0.00021369,2]
[362875407,1748505043096,-430.0,0.00021369,2]
[362875409,1748505043106,-433.64,0.00021369,2]
[362875411,1748505043115,-430.0,0.00021369,2]
[362875413,1748505043124,-430.0,0.00021369,2]
[362875415,1748505043133,-756.65,0.00021369,2]
[362875417,1748505043143,-430.0,0.00021369,2]
[362875419,1748505043152,-1636.66,0.00021369,2]
[362875421,1748505043162,-576.68,0.00021369,2]
[362875423,1748505043171,-430.0,0.00021369,2]
[362875425,1748505043181,-430.0,0.00021369,2]
[362875427,1748505043190,-430.0,0.00021369,2]
[362875429,1748505043199,-430.0,0.00021369,2]
[362875431,1748505043208,-666.11,0.00021369,2]
[362875432,1748505043217,-430.0,0.00021369,2]
[362875433,1748505043227,-718.68,0.00021369,2]
[362875434,1748505043236,-575.25,0.00021369,2]
[362875435,1748505043246,-430.0,0.00021369,2]
[362875436,1748505043255,-1886.86,0.00021369,2]
[362875437,1748505043264,-430.0,0.00021369,2]
[362875438,1748505043274,-430.0,0.00021369,2]
[362875439,1748505043284,-430.0,0.00021369,2]
[362875440,1748505043295,-817.8,0.00021369,2]
[362875441,1748505043306,-449.36,0.00021369,2]
[362875442,1748505043315,-11246.25981372,0.00021427,2]
[362875443,1748505043329,-6782.49619919,0.00021427,2]
[362875444,1748505043339,-8057.85024427,0.00021427,3]
[362875445,1748505043348,-1111.53206709,0.00021427,2]
[362875446,1748505043439,-372.53108523,0.0001991,2]
[362875447,1748505043449,-105.78332953,0.00021427,2]
[362875448,1748505043460,-543.73900073,0.00021427,2]
[362875449,1748505043471,-4209.36835794,0.00021427,2]
[362875450,1748505043543,-3814.70856631,0.00021427,2]
[362875451,1748505043556,-19022.50092044,0.00021427,2]
[362875454,1748505043802,-151.0,0.00020821,2]
[362875455,1748505043812,-539.62736126,0.00021427,2]
[362875633,1748505046788,-372.53108523,0.00020741,2]
[362875635,1748505046798,-46833.53059759,0.00021427,2]
[362875638,1748505046809,-151.0,0.00021427,2]
[362875639,1748505046818,-156.517148,0.00021427,2]
[362875641,1748505046827,-589.245029,0.00021427,2]
[362875643,1748505046836,-589.245029,0.00021427,2]
[362875645,1748505046845,-151.0,0.00021427,2]
[362875647,1748505046855,-151.0,0.00021427,2]
[362875649,1748505046864,-970.81908,0.00021427,2]
[362875651,1748505046873,-970.81908,0.00021427,2]
[362875653,1748505046883,-151.0,0.00021427,2]
[362875655,1748505046892,-151.0,0.00021427,2]
[362875657,1748505046902,-814.067911,0.00021427,2]
[362875659,1748505046911,-814.067911,0.00021427,2]
[362875661,1748505046921,-1153.385181,0.00021427,2]
[362875663,1748505046930,-1153.385181,0.00021427,2]
[362875666,1748505046940,-173.147933,0.00021427,2]
[362875668,1748505046950,-151.0,0.00021427,2]
[362875670,1748505046959,-284.330037,0.00021427,2]
[362875672,1748505046969,-284.330037,0.00021427,2]
[362875673,1748505046978,-151.0,0.00021427,2]
[362875675,1748505046987,-336.978384,0.00021427,2]
[362875677,1748505046997,-336.978384,0.00021427,2]
[362875679,1748505047006,-151.0,0.00021427,2]
[362875681,1748505047016,-410.55189418,0.00021452,5]
[362875683,1748505047027,-151.0,0.00021473,2]
[362875685,1748505047036,-151.0,0.00021473,2]
[362875687,1748505047044,-400.681675,0.00021473,2]
[362875689,1748505047055,-400.681675,0.00021473,2]
[362875691,1748505047064,-151.0,0.00021473,2]
[362875693,1748505047073,-600.0,0.00021512,2]
[362875694,1748505047082,-500.0,0.00021512,2]
[362875695,1748505047091,-500.0,0.00021512,2]
[362875696,1748505047100,-500.0,0.00021512,2]
[362875697,1748505047108,-500.0,0.00021512,2]
[362875698,1748505047117,-501.71650922,0.00021512,2]
[362875699,1748505047125,-500.0,0.00021512,2]
[362875700,1748505047134,-502.27571044,0.00021512,2]
[362875701,1748505047142,-500.0,0.00021512,2]
[362875702,1748505047151,-538.33834844,0.00021512,2]
[362875703,1748505047160,-500.0,0.00021512,2]
[362875704,1748505047169,-419.54407226,0.00021512,2]
[362875705,1748505047178,-500.0,0.00021512,2]
[362875706,1748505047188,-501.40980731,0.00021559,2]
[362875707,1748505047197,-151.0,0.000216,3]
[362875708,1748505047206,-500.0,0.00021614,2]
[362875709,1748505047215,-2000.0,0.00021616,2]
[362875710,1748505047225,-500.0,0.00021623,2]
[362875711,1748505047234,-353.1652959,0.00021623,2]
[362875712,1748505047243,-410.55189418,0.00021624,5]
[362875713,1748505047252,-151.0,0.00021643,2]
[362875714,1748505047261,-306.696718,0.00021643,2]
[362875715,1748505047270,-306.696718,0.00021643,2]
[362875716,1748505047279,-202.782535,0.00021643,2]
[362875717,1748505047291,-430.0,0.00021643,2]
[362875718,1748505047301,-202.782535,0.00021643,2]
[362875719,1748505047397,-430.0,0.00021643,2]
[362875720,1748505047406,-430.0,0.00021643,2]
[362875721,1748505047416,-430.0,0.00021643,2]
[362875722,1748505047425,-151.0,0.00021643,2]
[362875723,1748505047434,-430.0,0.00021643,2]
[362875725,1748505047443,-615.3,0.00021643,2]
[362875727,1748505047453,-430.0,0.00021643,2]
[362875728,1748505047462,-430.0,0.00021643,2]
[362875729,1748505047471,-541.1236136,0.00021643,2]
[362875730,1748505047480,-430.0,0.00021643,2]
[362875731,1748505047490,-430.0,0.00021643,2]
[362875732,1748505047499,-430.0,0.00021643,2]
[362875733,1748505047508,-2732.65,0.00021643,2]
[362875734,1748505047517,-993.66,0.00021643,2]
[362875735,1748505047528,-613.17,0.00021643,2]
[362875736,1748505047537,-902.73,0.00021643,2]
[362875737,1748505047547,-1504.2,0.00021643,2]
[362875738,1748505047558,-430.0,0.00021643,2]
[362875739,1748505047567,-430.0,0.00021643,2]
[362875740,1748505047577,-430.0,0.00021643,2]
[362875741,1748505047587,-430.0,0.00021643,2]
[362875742,1748505047597,-430.0,0.00021643,2]
[362875743,1748505047606,-722.52,0.00021643,2]
[362875744,1748505047616,-430.0,0.00021643,2]
[362875745,1748505047625,-791.86,0.00021643,2]
[362875746,1748505047635,-430.0,0.00021643,2]
[362875747,1748505047644,-1447.82,0.00021643,2]
[362875748,1748505047653,-430.0,0.00021643,2]
[362875749,1748505047663,-433.64,0.00021643,2]
[362875750,1748505047672,-430.0,0.00021643,2]
[362875751,1748505047681,-430.0,0.00021643,2]
[362875752,1748505047691,-756.65,0.00021643,2]
[362875753,1748505047700,-430.0,0.00021643,2]
[362875754,1748505047710,-1636.66,0.00021643,2]
[362875755,1748505047719,-576.68,0.00021643,2]
[362875756,1748505047729,-430.0,0.00021643,2]
[362875757,1748505047738,-430.0,0.00021643,2]
[362875758,1748505047748,-520.00032308,0.00021643,2]
[362875759,1748505047757,-331.6012484,0.00021643,2]
[362875760,1748505047767,-666.11,0.00021643,2]
[362875761,1748505047776,-430.0,0.00021643,2]
[362875762,1748505047786,-718.68,0.00021643,2]
[362875763,1748505047796,-575.25,0.00021643,2]
[362875764,1748505047807,-430.0,0.00021643,2]
[362875765,1748505047817,-1886.86,0.00021643,2]
[362875766,1748505047827,-430.0,0.00021643,2]
[362875767,1748505047837,-430.0,0.00021643,2]
[362875768,1748505047846,-430.0,0.00021643,2]
[362875769,1748505047856,-817.8,0.00021643,2]
[362875770,1748505047866,-449.36,0.00021643,2]
[362875771,1748505047876,-500.0,0.00021659,2]
[362875772,1748505047885,-500.67167304,0.00021659,2]
[362875773,1748505047895,-207.4,0.00021712,2]
[362875774,1748505047905,-410.55189418,0.00021797,6]
[362875775,1748505047915,-17130.4925527,0.000218,2]
[362875776,1748505047924,-16930.74651369,0.000218,4]
[362875777,1748505047935,-151.0,0.000218,2]
[362875778,1748505047946,-151.0,0.000218,2]
[362875779,1748505047956,-151.0,0.000218,2]
[362875780,1748505047965,-151.0,0.000218,2]
[362875781,1748505047974,-151.0,0.000218,2]
[362875782,1748505047984,-151.0,0.000218,2]
[362875783,1748505047993,-183.683837,0.000218,2]
[362875784,1748505048004,-183.683837,0.000218,2]
[362875785,1748505048014,-151.0,0.000218,2]
[362875786,1748505048024,-218.803986,0.000218,2]
[362875787,1748505048033,-218.803986,0.000218,2]
[362875788,1748505048043,-151.0,0.000218,2]
[362875789,1748505048054,-151.0,0.000218,2]
[362875790,1748505048064,-151.0,0.000218,2]
[362875791,1748505048074,-3225.77660102,0.0002181,7]
[362875792,1748505048084,-166.43334096,0.00021817,2]
[362875793,1748505048094,-160.0,0.00021917,2]
[362875794,1748505048104,-481.2875179,0.00021917,2]
[362875795,1748505048114,-430.0,0.00021917,2]
[362875796,1748505048124,-430.0,0.00021917,2]
[362875797,1748505048134,-430.0,0.00021917,2]
[362875798,1748505048143,-430.0,0.00021917,2]
[362875799,1748505048153,-615.3,0.00021917,2]
[362875800,1748505048163,-430.0,0.00021917,2]
[362875801,1748505048172,-405.74558301,0.00021917,2]
[362875802,1748505048182,-430.0,0.00021917,2]
[362875803,1748505048192,-430.0,0.00021917,2]
[362875804,1748505048201,-208.43380034,0.00021917,2]
[362875805,1748505048211,-2732.65,0.00021917,2]
[362875806,1748505048221,-993.66,0.00021917,2]
[362875807,1748505048231,-613.17,0.00021917,2]
[362875808,1748505048241,-902.73,0.00021917,2]
[362875809,1748505048251,-1504.2,0.00021917,2]
[362875810,1748505048260,-430.0,0.00021917,2]
[362875811,1748505048270,-343.33315682,0.00021917,2]
[362875812,1748505048280,-430.0,0.00021917,2]
[362875813,1748505048294,-430.0,0.00021917,2]
[362875814,1748505048305,-430.0,0.00021917,2]
[362875815,1748505048315,-722.52,0.00021917,2]
[362875816,1748505048325,-430.0,0.00021917,2]
[362875817,1748505048335,-791.86,0.00021917,2]
[362875818,1748505048344,-430.0,0.00021917,2]
[362875819,1748505048354,-1447.82,0.00021917,2]
[362875820,1748505048364,-430.0,0.00021917,2]
[362875821,1748505048374,-433.64,0.00021917,2]
[362875822,1748505048385,-430.0,0.00021917,2]
[362875823,1748505048395,-756.65,0.00021917,2]
[362875824,1748505048404,-430.0,0.00021917,2]
[362875825,1748505048414,-1636.66,0.00021917,2]
[362875826,1748505048423,-576.68,0.00021917,2]
[362875827,1748505048433,-185.94776078,0.00021917,2]
[362875828,1748505048443,-430.0,0.00021917,2]
[362875829,1748505048452,-666.11,0.00021917,2]
[362875830,1748505048461,-430.0,0.00021917,2]
[362875831,1748505048471,-718.68,0.00021917,2]
[362875832,1748505048480,-575.25,0.00021917,2]
[362875833,1748505048490,-430.0,0.00021917,2]
[362875834,1748505048499,-1886.86,0.00021917,2]
[362875835,1748505048509,-430.0,0.00021917,2]
[362875836,1748505048519,-489.34539332,0.00021917,2]
[362875837,1748505048528,-430.0,0.00021917,2]
[362875838,1748505048538,-817.8,0.00021917,2]
[362875839,1748505048548,-449.36,0.00021917,2]
[362875840,1748505048559,-1000.0,0.00021951,2]
[362875841,1748505048569,-1000.0,0.00021951,2]
[362875842,1748505048578,-1000.0,0.00021951,2]
[362875843,1748505048589,-1000.0,0.00021951,2]
[362875844,1748505048599,-1000.0,0.00021951,2]
[362875845,1748505048608,-1000.0,0.00021951,2]
[362875846,1748505048618,-1000.0,0.00021951,2]
[362875847,1748505048628,-1000.0,0.00021951,2]
[362875848,1748505048637,-1000.0,0.00021951,2]
[362875849,1748505048647,-1000.0,0.00021951,2]
[362875850,1748505048656,-1000.0,0.00021951,2]
[362875851,1748505048666,-1000.0,0.00021951,2]
[362875852,1748505048676,-1000.0,0.00021951,2]
[362875853,1748505048685,-1000.0,0.00021951,2]
[362875854,1748505048695,-1000.0,0.00021951,2]
[362875855,1748505048705,-1000.0,0.00021951,2]
[362875856,1748505048714,-1000.0,0.00021951,2]
[362875857,1748505048723,-1000.0,0.00021951,2]
[362875858,1748505048732,-1000.0,0.00021951,2]
[362875859,1748505048741,-1153.385181,0.00021951,7]
[362875860,1748505048751,-1153.385181,0.00021951,7]
[362875861,1748505048760,-151.0,0.00021951,7]
[362875862,1748505048770,-284.330037,0.00021951,7]
[362875863,1748505048779,-284.330037,0.00021951,7]
[362875864,1748505048789,-336.978384,0.00021951,7]
[362875865,1748505048799,-336.978384,0.00021951,7]
[362875866,1748505048810,-410.55189418,0.00021969,6]
[362875867,1748505048819,-3606.37,0.00022,2]
[362875868,1748505048829,-1437.52404599,0.00022,2]
[362875869,1748505048839,-970.81908,0.00022,2]
[362875870,1748505048849,-970.81908,0.00022,2]
[362875871,1748505048858,-814.067911,0.00022,7]
[362875872,1748505048868,-814.067911,0.00022,7]
[362875873,1748505048877,-1200.0,0.0002206,2]
[362875874,1748505048887,-1000.0,0.0002206,2]
[362875875,1748505048896,-1000.0,0.0002206,2]
[362875876,1748505048906,-364.176416,0.00022137,2]
[362875877,1748505048915,-364.176416,0.00022137,2]
[362875878,1748505048925,-364.176416,0.00022137,2]
[362875879,1748505048934,-364.176416,0.00022137,2]
[362875880,1748505048943,-364.176416,0.00022137,2]
[362875881,1748505048952,-364.176416,0.00022137,2]
[362875882,1748505048960,-364.176416,0.00022137,2]
[362875883,1748505048968,-364.176416,0.00022137,2]
[362875884,1748505048976,-342.4686622,0.00022137,2]
[362875885,1748505048985,-410.55189418,0.00022141,6]
[362875886,1748505048993,-500.0,0.00022162,2]
[362875887,1748505049002,-511.46126897,0.00022164,2]
[362875888,1748505049010,-151.0,0.00022191,7]
[362875889,1748505049021,-151.0,0.00022191,7]
[362875890,1748505049033,-151.0,0.00022191,7]
[362875891,1748505049041,-430.0,0.00022191,2]
[362875892,1748505049050,-400.681675,0.00022191,7]
[362875893,1748505049060,-400.681675,0.00022191,7]
[362875894,1748505049068,-430.0,0.00022191,2]
[362875895,1748505049076,-430.0,0.00022191,2]
[362875896,1748505049084,-295.496725,0.00022191,7]
[362875897,1748505049093,-589.245029,0.00022191,7]
[362875898,1748505049101,-589.245029,0.00022191,7]
[362875899,1748505049109,-151.0,0.00022191,7]
[362875900,1748505049117,-151.0,0.00022191,7]
[362875901,1748505049126,-430.0,0.00022191,2]
[362875902,1748505049134,-615.3,0.00022191,2]
[362875903,1748505049142,-430.0,0.00022191,2]
[362875904,1748505049150,-151.0,0.00022191,7]
[362875905,1748505049159,-320.45,0.00022191,2]
[362875906,1748505049168,-430.0,0.00022191,2]
[362875907,1748505049177,-2732.65,0.00022191,2]
[362875908,1748505049186,-993.66,0.00022191,2]
[362875909,1748505049196,-613.17,0.00022191,2]
[362875910,1748505049205,-902.73,0.00022191,2]
[362875911,1748505049214,-1504.2,0.00022191,2]
[362875912,1748505049222,-430.0,0.00022191,2]
[362875913,1748505049231,-430.0,0.00022191,2]
[362875914,1748505049240,-430.0,0.00022191,2]
[362875915,1748505049249,-429.71539997,0.00022191,2]
[362875916,1748505049257,-722.52,0.00022191,2]
[362875917,1748505049266,-430.0,0.00022191,2]
[362875918,1748505049274,-791.86,0.00022191,2]
[362875919,1748505049284,-430.0,0.00022191,2]
[362875920,1748505049296,-1447.82,0.00022191,2]
[362875921,1748505049306,-433.64,0.00022191,2]
[362875922,1748505049315,-430.0,0.00022191,2]
[362875923,1748505049408,-756.65,0.00022191,2]
[362875924,1748505049418,-430.0,0.00022191,2]
[362875925,1748505049428,-1636.66,0.00022191,2]
[362875926,1748505049437,-576.68,0.00022191,2]
[362875927,1748505049447,-430.0,0.00022191,2]
[362875928,1748505049457,-666.11,0.00022191,2]
[362875929,1748505049467,-430.0,0.00022191,2]
[362875930,1748505049477,-718.68,0.00022191,2]
[362875931,1748505049487,-575.25,0.00022191,2]
[362875932,1748505049496,-430.0,0.00022191,2]
[362875933,1748505049507,-1886.86,0.00022191,2]
[362875934,1748505049517,-430.0,0.00022191,2]
[362875935,1748505049526,-430.0,0.00022191,2]
[362875936,1748505049536,-817.8,0.00022191,2]
[362875937,1748505049545,-449.36,0.00022191,2]
[362875938,1748505049555,-500.0,0.00022207,2]
[362875939,1748505049564,-600.0,0.0002226,2]
[362875940,1748505049574,-410.55189418,0.00022314,7]
[362875941,1748505049584,-151.0,0.00022465,7]
[362875942,1748505049593,-151.0,0.00022465,7]
[362875943,1748505049602,-151.0,0.00022465,7]
[362875944,1748505049612,-306.696718,0.00022465,7]
[362875945,1748505049621,-306.696718,0.00022465,7]
[362875946,1748505049631,-202.782535,0.00022465,7]
[362875947,1748505049640,-202.782535,0.00022465,7]
[362875948,1748505049650,-430.0,0.00022465,2]
[362875949,1748505049660,-430.0,0.00022465,2]
[362875950,1748505049669,-430.0,0.00022465,2]
[362875951,1748505049679,-151.0,0.00022465,7]
[362875952,1748505049689,-430.0,0.00022465,2]
[362875953,1748505049698,-615.3,0.00022465,2]
[362875954,1748505049708,-497.44375496,0.00022465,2]
[362875955,1748505049718,-430.0,0.00022465,2]
[362875956,1748505049728,-2732.65,0.00022465,2]
[362875957,1748505049737,-993.66,0.00022465,2]
[362875958,1748505049747,-613.17,0.00022465,2]
[362875959,1748505049757,-902.73,0.00022465,2]
[362875960,1748505049767,-1504.2,0.00022465,2]